[Event "LEM Niedersachsen-A-Open 2025"]
[Site "Verden"]
[Date "2025.01.02"]
[Round "1.28"]
[White "Lieb, Max"]
[Black "Nolting, Dennis"]
[Result "1-0"]
[ECO "A58"]
[WhiteElo "1791"]
[BlackElo "1937"]
[Annotator "NA RC"]
[PlyCount "143"]
[EventDate "2024.12.27"]
[EventType "swiss"]
[EventCountry "GER"]
[SourceTitle "playchess.com"]
[Source "ChessBase"]
[SourceQuality "1"]
[TimeControl "40/5400+30:1800+30"]

1. d4 {[%emt 0:00:03]} Nf6 {[%emt 0:00:10]} 2. c4 {[%emt 0:00:07]} c5 {[%emt 0:00:04]} 3. d5 {[%emt 0:00:08]} b5 {[%emt 0:00:04]} 4. cxb5 {[%emt 0:00:16]} a6 {[%emt 0:00:07]} 5. bxa6 {[%emt 0:00:10]} g6 {[%emt 0:00:06]} 6. Nc3 {[%emt 0:00:17] A58: Benko/Volga Gambit: Lines with 5 bxa6.} Bg7 {[%emt 0:00:04]} 7. e4 {[%emt 0:00:16]} O-O {[%emt 0:00:48]} 8. Nf3 {[%emt 0:08:46]} Qa5 {[%emt 0:00:13]} 9. Bd2 {[%emt 0:06:07]} Bxa6 {[%emt 0:00:18]} 10. Bxa6 {[%emt 0:00:19]} Qxa6 {[%emt 0:00:07]} 11. Qe2 {[%emt 0:03:05]} Qxe2+ {[%emt 0:01:05]} 12. Kxe2 {[%emt 0:00:22]} d6 {[%emt 0:00:20]} 13. Rhe1 {[%emt 0:08:11]} Nbd7 {[%emt 0:01:46]} 14. Kf1 {[%emt 0:08:09]} Rfb8 {[%emt 0:01:35]} 15. b3 {[%emt 0:02:11]} Ng4 {[%emt 0:00:47]} 16. h3 {[%emt 0:02:12]} Nge5 {[%emt 0:00:10]} 17. Nxe5 {[%emt 0:03:29]} Nxe5 {[%emt 0:00:15]} 18. f4 {[%emt 0:00:21]} Nd3 {[%emt 0:00:22]} 19. Reb1 {[%emt 0:01:34] [#]} Nxf4 $1 {[%emt 0:01:20]} 20. Be1 {[%emt 0:01:39]} Nd3 {[%emt 0:03:34]} 21. Bd2 {[%emt 0:00:42]} Nb4 {[%emt 0:02:15]} 22. a4 {[%emt 0:00:50]} Nc2 {[%emt 0:01:49]} 23. Ra2 {[%emt 0:00:30]} Nd4 {[%emt 0:00:27]} 24. Rab2 {[%emt 0:01:25]} e6 {[%emt 0:00:23]} 25. b4 {[%emt 0:00:47]} cxb4 {[%emt 0:04:17]} 26. Rxb4 {[%emt 0:00:16]} Rc8 {[%emt 0:00:28]} 27. Nb5 {[%emt 0:02:01]} Nxb5 {[%emt 0:01:01]} 28. axb5 {[%emt 0:00:18]} Rab8 {[%emt 0:01:33]} (28... Rc7 $16 {is a better defense.} 29. b6 Rb7) 29. b6 {[%emt 0:00:58]} Rb7 {[%emt 0:01:31]} 30. Ra4 {[%emt 0:03:26]} Rcb8 {[%emt 0:01:55]} 31. Be3 {[%emt 0:00:30]} Bf6 {[%emt 0:01:25]} 32. Ke2 {[%emt 0:03:16]} Kf8 {[%emt 0:02:12]} 33. Ra7 {[%emt 0:01:36]} Bd8 {[%emt 0:02:47]} 34. Rc1 {[%emt 0:03:32]} Rxb6 {[%emt 0:04:44]} (34... Bxb6 35. Rxb7 Rxb7 36. Rb1 exd5 37. Rxb6 (37. exd5 $16 Bxe3 38. Rxb7 Bg5 $18) 37... Rxb6 38. Bxb6 $18) (34... exd5 $142 35. exd5 Rxb6) 35. Bxb6 {[%emt 0:02:00]} Bxb6 {[%emt 0:00:06]} 36. Ra6 {[%emt 0:01:01]} Bc5 {[%emt 0:00:10]} 37. e5 {[%emt 0:07:30]} Rb2+ {[%emt 0:02:41]} 38. Kf3 {[%emt 0:00:53]} Rb3+ {[%emt 0:00:31]} 39. Ke2 {[%emt 0:00:59]} Rb2+ {[%emt 0:00:18]} 40. Kd3 {[%emt 0:01:05]} Rb3+ {[%emt 0:01:00]} 41. Kc2 {[%emt 0:31:17]} Rb7 {[%emt 0:36:34]} 42. exd6 {[%emt 0:01:14]} Rd7 {[%emt 0:03:43]} 43. dxe6 {[%emt 0:03:35]} Rxd6 {[%emt 0:01:32]} 44. Rxd6 {[%emt 0:00:14]} Bxd6 {[%emt 0:00:03]} 45. Rf1 {[%emt 0:00:30]} f6 {[%emt 0:01:00]} 46. Rxf6+ {[%emt 0:00:13]} Ke7 {[%emt 0:00:04]} 47. Rf7+ {[%emt 0:00:19]} Kxe6 {[%emt 0:00:05]} 48. Rxh7 {[%emt 0:00:34]} Kf6 {[%emt 0:00:18]} 49. Kd3 {[%emt 0:00:25]} Kf5 {[%emt 0:01:00]} 50. Ra7 {[%emt 0:00:47]} g5 {[%emt 0:00:25]} 51. Ra5+ {[%emt 0:01:04]} Kf4 {[%emt 0:00:14]} 52. Ra4+ {[%emt 0:00:16]} Kf5 {[%emt 0:01:06]} 53. Ke3 {[%emt 0:00:19]} Bf4+ {[%emt 0:00:14]} 54. Kf3 {[%emt 0:01:51]} Bc7 {[%emt 0:00:08]} 55. Rb4 {[%emt 0:00:51]} Bd8 {[%emt 0:00:30]} 56. Rb5+ {[%emt 0:00:24]} Kf6 {[%emt 0:00:12]} 57. Kg4 {[%emt 0:00:32]} Kg6 {[%emt 0:00:03]} 58. Rc5 {[%emt 0:01:11]} Be7 {[%emt 0:00:08]} 59. Rc6+ {[%emt 0:00:14]} Bf6 {[%emt 0:01:21]} 60. Rxf6+ {[%emt 0:00:23]} Kxf6 {[%emt 0:00:10]} 61. h4 {[%emt 0:00:46]} Kg6 {[%emt 0:00:42]} 62. h5+ {[%emt 0:00:16]} Kh6 {[%emt 0:00:17]} 63. g3 {[%emt 0:00:08]} Kh7 {[%emt 0:00:03]} 64. Kxg5 {[%emt 0:00:07]} Kg7 {[%emt 0:00:03]} 65. h6+ {[%emt 0:00:08]} Kh7 {[%emt 0:00:06]} 66. g4 {[%emt 0:00:17]} Kh8 {[%emt 0:00:02]} 67. Kf6 {[%emt 0:00:11]} Kg8 {[%emt 0:00:11]} 68. g5 {[%emt 0:01:21]} Kh8 {[%emt 0:00:19]} 69. g6 {[%emt 0:00:24]} Kg8 {[%emt 0:00:03]} 70. h7+ {[%emt 0:00:25]} Kh8 {[%emt 0:00:04]} 71. g7+ {[%emt 0:00:07]} Kxh7 {[%emt 0:00:05]} 72. Kf7 {[%emt 0:00:08]} 1-0

[Event "LEM Niedersachsen-A-Open 2025"]
[Site "Verden"]
[Date "2025.01.02"]
[Round "1.29"]
[White "Scheffner, Jarno"]
[Black "Beckmann, Jonathan"]
[Result "1-0"]
[ECO "B94"]
[WhiteElo "1925"]
[BlackElo "1812"]
[Annotator "RC"]
[PlyCount "125"]
[EventDate "2024.12.27"]
[EventType "swiss"]
[EventCountry "GER"]
[SourceTitle "playchess.com"]
[Source "ChessBase"]
[SourceQuality "1"]
[TimeControl "40/5400+30:1800+30"]

1. e4 {[%emt 0:00:04]} c5 {[%emt 0:00:05]} 2. Nf3 {[%emt 0:00:10]} d6 {[%emt 0:00:07]} 3. d4 {[%emt 0:00:08]} cxd4 {[%emt 0:00:03]} 4. Nxd4 {[%emt 0:00:06]} Nf6 {[%emt 0:00:06]} 5. Nc3 {[%emt 0:00:07]} a6 {[%emt 0:00:05]} 6. Bg5 {[%emt 0:00:12]} Nbd7 {[%emt 0:00:12]} 7. Qe2 {[%emt 0:00:12]} e6 {[%emt 0:00:31]} 8. h4 {[%emt 0:00:19]} Be7 {[%emt 0:02:10]} 9. O-O-O {[%emt 0:00:27]} Qc7 {[%emt 0:01:41]} 10. g4 {[%emt 0:00:33]} b5 {[%emt 0:10:19]} 11. a3 {[%emt 0:00:59]} Bb7 {[%emt 0:04:12]} 12. Rh3 {[%emt 0:05:05]} h6 {[%emt 0:23:25]} 13. Bd2 {[%emt 0:00:17]} d5 {[%emt 0:03:21]} 14. g5 {[%emt 0:07:57]} hxg5 {[%emt 0:03:54]} 15. hxg5 {[%emt 0:00:08]} Rxh3 {[%emt 0:01:18]} 16. Bxh3 {[%emt 0:00:02]} Nxe4 {[%emt 0:02:43]} 17. Bxe6 {[%emt 0:23:13]} O-O-O {[%emt 0:11:07]} 18. Nxd5 {[%emt 0:09:47]} Bxd5 {[%emt 0:01:21]} 19. Bxd5 {[%emt 0:00:03]} Nxd2 {[%emt 0:00:33]} 20. Qxe7 {[%emt 0:02:02]} Nc4 {[%emt 0:01:08]} 21. Nc6 {[%emt 0:05:37]} Rh8 {[%emt 0:03:50]} 22. Qxf7 {[%emt 0:23:38]} Rf8 {[%emt 0:11:19]} 23. Qxg7 {[%emt 0:00:14]} Rxf2 {[%emt 0:00:59]} 24. Be6 {[%emt 0:06:12]} Ncb6 {[%emt 0:05:52]} 25. Qc3 {[%emt 0:07:36]} Kb7 {[%emt 0:04:34]} 26. Na5+ {[%emt 0:00:42]} Kb8 {[%emt 0:00:01]} 27. Bxd7 {[%emt 0:01:40]} Nxd7 {[%emt 0:00:26]} 28. Rxd7 {[%emt 0:02:10]} Qxd7 {[%emt 0:02:18]} 29. Qg3+ {[%emt 0:00:17]} Qc7 {[%emt 0:00:02]} 30. Qxf2 {[%emt 0:00:48]} Qxa5 {[%emt 0:00:08]} 31. Qf8+ {[%emt 0:00:20]} Kb7 {[%emt 0:00:17]} 32. Qe7+ {[%emt 0:00:08]} Kb8 {[%emt 0:00:29]} 33. g6 {[%emt 0:00:39]} Qb6 {[%emt 0:00:33]} 34. g7 {[%emt 0:01:34]} Qg1+ {[%emt 0:00:15]} 35. Kd2 {[%emt 0:00:14]} Qg2+ {[%emt 0:00:51]} 36. Kd3 {[%emt 0:01:17]} Qg3+ {[%emt 0:02:24]} 37. Kd4 {[%emt 0:00:48]} Qg4+ {[%emt 0:03:06]} 38. Ke5 {[%emt 0:00:56]} Qe2+ {[%emt 0:00:37]} 39. Kf6 {[%emt 0:00:13]} Qf2+ {[%emt 0:00:25]} 40. Ke6 {[%emt 0:00:42]} Qe2+ {[%emt 0:00:43]} 41. Kd7 {[%emt 0:32:00]} Qg4+ {[%emt 0:30:31]} 42. Kc6 {[%emt 0:00:26]} Qc4+ {[%emt 0:01:09]} 43. Kb6 {[%emt 0:00:00]} Qd4+ {[%emt 0:00:00]} 44. Kxa6 {[%emt 0:00:00]} Qa4+ {[%emt 0:00:00]} 45. Kb6 {[%emt 0:00:00]} Qd4+ {[%emt 0:00:00]} 46. Kxb5 {[%emt 0:00:00]} Qxb2+ {[%emt 0:00:00]} 47. Ka4 {[%emt 0:00:00]} Qxc2+ {[%emt 0:00:00]} 48. Ka5 {[%emt 0:00:00]} Qf5+ {[%emt 0:00:00]} 49. Kb4 {[%emt 0:00:00]} Qf4+ {[%emt 0:00:00]} 50. Kc5 {[%emt 0:00:00]} Qf5+ {[%emt 0:00:00]} 51. Kd6 {[%emt 0:00:00]} Qd3+ {[%emt 0:00:00]} 52. Ke6 {[%emt 0:00:00]} Qb3+ {[%emt 0:00:00]} 53. Kf6 {[%emt 0:00:00]} Qf3+ {[%emt 0:00:00]} 54. Kg6 {[%emt 0:00:00]} Qd3+ {[%emt 0:00:00]} 55. Kf7 {[%emt 0:00:00]} Qc4+ {[%emt 0:00:00]} 56. Qe6 {[%emt 0:00:00]} Qc7+ {[%emt 0:00:00]} 57. Kg8 {[%emt 0:00:00]} Qd8+ {[%emt 0:00:00]} 58. Kh7 {[%emt 0:00:00]} Qh4+ {[%emt 0:00:00]} 59. Qh6 {[%emt 0:00:00]} Qe4+ {[%emt 0:00:00]} 60. Kh8 {[%emt 0:00:00]} Qe5 {[%emt 0:00:00]} 61. a4 {[%emt 0:00:00]} Ka8 {[%emt 0:00:00]} 62. Qa6+ {[%emt 0:00:00]} Kb8 {[%emt 0:00:00]} 63. Qb5+ {[%emt 0:00:00]} 1-0

[Event "LEM Niedersachsen-A-Open 2025"]
[Site "Verden"]
[Date "2025.01.02"]
[Round "1.30"]
[White "Holtwessels, Jan"]
[Black "Gottschalk, Siegfried"]
[Result "0-1"]
[ECO "C15"]
[WhiteElo "1812"]
[BlackElo "1936"]
[Annotator "NA RC"]
[PlyCount "80"]
[EventDate "2024.12.27"]
[EventType "swiss"]
[EventCountry "GER"]
[SourceTitle "playchess.com"]
[Source "ChessBase"]
[SourceQuality "1"]
[TimeControl "40/5400+30:1800+30"]

1. e4 {[%emt 0:00:03]} e6 {[%emt 0:00:12]} 2. d4 {[%emt 0:00:03]} d5 {[%emt 0:00:06]} 3. Nc3 {[%emt 0:00:04]} Bb4 {[%emt 0:00:28]} 4. Nge2 {[%emt 0:00:34]} Nc6 {[%emt 0:01:17]} 5. a3 {[%emt 0:01:38]} Ba5 {[%emt 0:00:41]} 6. e5 {[%emt 0:04:04]} Nge7 {[%emt 0:12:30] C15: French: 3 Nc3 Bb4: Unusual White 4th moves.} 7. b4 {[%emt 0:03:02]} Bb6 {[%emt 0:00:21]} 8. Na4 {[%emt 0:01:25]} O-O {[%emt 0:02:06]} 9. c3 {[%emt 0:02:09]} Ng6 {[%emt 0:07:11]} 10. h4 {[%emt 0:03:24]} f6 {[%emt 0:07:12]} 11. h5 {[%emt 0:01:33]} Nh8 {[%emt 0:01:43]} 12. exf6 {[%emt 0:08:08]} Qxf6 {[%emt 0:01:33]} 13. f4 {[%emt 0:01:49]} (13. Nf4 $11) 13... Bd7 {[%emt 0:01:36]} (13... Nf7 $15 {should be considered.}) 14. g4 {[%emt 0:03:12]} g5 {[%emt 0:12:33]} 15. Nxb6 {[%emt 0:09:47]} axb6 {[%emt 0:00:28]} 16. Be3 {[%emt 0:00:39]} gxf4 {[%emt 0:04:29]} 17. Bxf4 {[%emt 0:00:30]} Qf7 {[%emt 0:05:43]} 18. Qd2 {[%emt 0:07:17]} e5 {[%emt 0:04:05]} 19. dxe5 {[%emt 0:02:19]} Rfe8 $2 {[%emt 0:10:15]} (19... Qe7 $16 {was called for.}) 20. Bg2 {[%emt 0:04:01]} Be6 {[%emt 0:06:56]} 21. Rf1 $18 {[%emt 0:06:25]} Qg7 {[%emt 0:03:22]} 22. Bg5 {[%emt 0:05:43]} Nf7 {[%emt 0:02:29]} 23. Bf6 {[%emt 0:01:59]} Qh6 {[%emt 0:01:00]} 24. g5 {[%emt 0:01:58]} Qxh5 {[%emt 0:01:06]} 25. Rh1 {[%emt 0:02:52]} Qg6 {[%emt 0:01:27]} 26. Nf4 {[%emt 0:09:36]} Qf5 {[%emt 0:01:31]} 27. Kd1 {[%emt 0:03:19]} Ncxe5 {[%emt 0:01:56]} 28. Re1 {[%emt 0:04:15]} Nc4 {[%emt 0:00:44]} 29. Qc1 {[%emt 0:01:36]} Qg4+ {[%emt 0:01:23]} 30. Kc2 {[%emt 0:00:33]} Bf5+ {[%emt 0:01:55]} 31. Kb3 {[%emt 0:00:12]} Rxe1 {[%emt 0:00:46]} 32. Qxe1 {[%emt 0:00:06]} Qxf4 {[%emt 0:00:48]} 33. Bxd5 {[%emt 0:00:41]} Ne3 {[%emt 0:01:08]} 34. Qh1 {[%emt 0:01:48]} Nxd5 {[%emt 0:01:22]} 35. Qxd5 {[%emt 0:00:16]} Qe4 {[%emt 0:00:17]} 36. Qd2 {[%emt 0:00:36]} Qe6+ {[%emt 0:01:10]} 37. Kb2 {[%emt 0:00:21]} Re8 {[%emt 0:00:20]} 38. Qf4 {[%emt 0:00:42]} Qe2+ {[%emt 0:00:20]} 39. Kb3 {[%emt 0:00:32]} Bc2+ {[%emt 0:00:28]} 40. Kb2 {[%emt 0:00:16]} Ba4+ {[%emt 0:00:13]} 0-1

[Event "LEM Niedersachsen-A-Open 2025"]
[Site "Verden"]
[Date "2025.01.02"]
[Round "1.31"]
[White "Thomas, Jeremy"]
[Black "Schulze, Tim"]
[Result "1-0"]
[ECO "B15"]
[WhiteElo "1935"]
[BlackElo "1804"]
[Annotator "RC"]
[PlyCount "65"]
[EventDate "2024.12.27"]
[EventType "swiss"]
[EventCountry "GER"]
[SourceTitle "playchess.com"]
[Source "ChessBase"]
[SourceQuality "1"]
[TimeControl "40/5400+30:1800+30"]

1. e4 {[%emt 0:00:05]} c6 {[%emt 0:00:20]} 2. d4 {[%emt 0:00:04]} d5 {[%emt 0:00:03]} 3. Nd2 {[%emt 0:00:03]} dxe4 {[%emt 0:00:07]} 4. Nxe4 {[%emt 0:00:01]} Nf6 {[%emt 0:00:17]} 5. Nxf6+ {[%emt 0:00:04]} exf6 {[%emt 0:00:02]} 6. c3 {[%emt 0:00:06]} Bd6 {[%emt 0:00:24]} 7. Bd3 {[%emt 0:00:02]} O-O {[%emt 0:00:23]} 8. Qc2 {[%emt 0:00:03]} Re8+ {[%emt 0:00:09]} 9. Ne2 {[%emt 0:00:04]} h5 {[%emt 0:00:07]} 10. O-O {[%emt 0:02:28]} h4 {[%emt 0:00:06]} 11. h3 {[%emt 0:00:21]} Nd7 {[%emt 0:01:09]} 12. Be3 {[%emt 0:17:16]} Nf8 {[%emt 0:02:36]} 13. Qd2 {[%emt 0:04:57]} Be6 {[%emt 0:20:15]} 14. Bf4 {[%emt 0:04:39]} c5 {[%emt 0:02:41]} 15. Bxd6 {[%emt 0:05:14]} Qxd6 {[%emt 0:00:03]} 16. dxc5 {[%emt 0:01:11]} Qxc5 {[%emt 0:00:11]} 17. Nd4 {[%emt 0:00:40]} Rad8 {[%emt 0:02:09]} 18. Qf4 {[%emt 0:01:53]} Qh5 {[%emt 0:04:56]} 19. Rfe1 {[%emt 0:04:40]} Re7 {[%emt 0:08:57]} 20. Be2 {[%emt 0:10:40]} Qg5 {[%emt 0:09:29]} 21. Qxg5 {[%emt 0:00:55]} fxg5 {[%emt 0:00:03]} 22. Bf3 {[%emt 0:00:52]} Red7 {[%emt 0:01:19]} 23. Re5 {[%emt 0:01:15]} f6 {[%emt 0:06:57]} 24. Nxe6 {[%emt 0:03:42]} fxe5 {[%emt 0:00:14]} 25. Nxd8 {[%emt 0:00:07]} Rxd8 {[%emt 0:00:10]} 26. Bxb7 {[%emt 0:00:22]} Ne6 {[%emt 0:00:58]} 27. Re1 {[%emt 0:02:43]} Nc5 {[%emt 0:00:14]} 28. Bf3 {[%emt 0:00:30]} Rd2 {[%emt 0:02:23]} 29. Rxe5 {[%emt 0:00:41]} Nd3 {[%emt 0:00:21]} 30. Rd5 {[%emt 0:01:06]} Kf7 {[%emt 0:00:53]} 31. c4 {[%emt 0:00:23]} Ke6 {[%emt 0:01:03]} 32. Bg4+ {[%emt 0:00:25]} Kf6 {[%emt 0:00:18]} 33. c5 {[%emt 0:00:21]} 1-0

[Event "LEM Niedersachsen-A-Open 2025"]
[Site "Verden"]
[Date "2025.01.02"]
[Round "1.32"]
[White "Moeller, Tom"]
[Black "Moeller, Jonas"]
[Result "1/2-1/2"]
[ECO "B13"]
[WhiteElo "1802"]
[BlackElo "1934"]
[Annotator "RC"]
[PlyCount "35"]
[EventDate "2024.12.27"]
[EventType "swiss"]
[EventCountry "GER"]
[SourceTitle "playchess.com"]
[Source "ChessBase"]
[SourceQuality "1"]
[TimeControl "40/5400+30:1800+30"]

1. d4 {[%emt 0:00:03]} Nf6 {[%emt 0:00:04]} 2. Nc3 {[%emt 0:00:04]} d5 {[%emt 0:00:07]} 3. Bf4 {[%emt 0:00:05]} c5 {[%emt 0:00:41]} 4. e3 {[%emt 0:00:04]} cxd4 {[%emt 0:00:31]} 5. exd4 {[%emt 0:00:07]} a6 {[%emt 0:00:25]} 6. Nf3 {[%emt 0:02:12]} Nc6 {[%emt 0:00:26]} 7. Ne5 {[%emt 0:00:42]} Qb6 {[%emt 0:14:51]} 8. Na4 {[%emt 0:04:12]} Qa5+ {[%emt 0:23:04]} 9. c3 {[%emt 0:00:13]} Nxe5 {[%emt 0:05:24]} 10. dxe5 {[%emt 0:02:29]} Bd7 {[%emt 0:06:25]} 11. exf6 {[%emt 0:03:35]} Bxa4 {[%emt 0:04:30]} 12. Qd4 {[%emt 0:07:53]} gxf6 {[%emt 0:04:47]} 13. Bd3 {[%emt 0:04:20]} Bg7 {[%emt 0:04:00]} 14. O-O {[%emt 0:03:23]} O-O {[%emt 0:06:28]} 15. Qe3 {[%emt 0:02:40]} e5 {[%emt 0:03:40]} 16. Bh6 {[%emt 0:01:04]} Bxh6 {[%emt 0:01:54]} 17. Qxh6 {[%emt 0:00:06]} e4 {[%emt 0:00:14]} 18. Qxf6 {[%emt 0:01:08]} 1/2-1/2

[Event "LEM Niedersachsen-A-Open 2025"]
[Site "Verden"]
[Date "2025.01.02"]
[Round "1.33"]
[White "Langer, Michael S."]
[Black "Wilmink, Luca"]
[Result "1-0"]
[ECO "B38"]
[WhiteElo "1933"]
[BlackElo "1792"]
[Annotator "RC"]
[PlyCount "57"]
[EventDate "2024.12.27"]
[EventType "swiss"]
[EventCountry "GER"]
[SourceTitle "playchess.com"]
[Source "ChessBase"]
[SourceQuality "1"]
[TimeControl "40/5400+30:1800+30"]

1. Nf3 {[%emt 0:00:17]} g6 {[%emt 0:01:29]} 2. d4 {[%emt 0:00:26]} Nf6 {[%emt 0:00:41]} 3. c4 {[%emt 0:01:07]} c5 {[%emt 0:00:47]} 4. Nc3 {[%emt 0:00:43]} cxd4 {[%emt 0:01:05]} 5. Nxd4 {[%emt 0:00:16]} Bg7 {[%emt 0:00:42]} 6. e4 {[%emt 0:01:04]} d6 {[%emt 0:03:07]} 7. Be2 {[%emt 0:00:19]} Nc6 {[%emt 0:02:35]} 8. Be3 {[%emt 0:01:02]} O-O {[%emt 0:01:41]} 9. O-O {[%emt 0:01:01]} a6 {[%emt 0:01:57]} 10. f3 {[%emt 0:03:40]} Qb6 {[%emt 0:07:21]} 11. Na4 {[%emt 0:04:18]} Qc7 {[%emt 0:02:26]} 12. Rc1 {[%emt 0:12:38]} Bd7 {[%emt 0:02:37]} 13. Nxc6 {[%emt 0:06:04]} Bxc6 {[%emt 0:03:47]} 14. Nb6 {[%emt 0:04:56]} Rad8 {[%emt 0:02:23]} 15. Nd5 {[%emt 0:03:08]} Bxd5 {[%emt 0:01:50]} 16. cxd5 {[%emt 0:00:25]} Qa5 {[%emt 0:01:07]} 17. Qb3 {[%emt 0:04:30]} b5 {[%emt 0:02:25]} 18. Rc6 {[%emt 0:04:08]} Rc8 {[%emt 0:01:53]} 19. Rfc1 {[%emt 0:08:38]} Rxc6 {[%emt 0:01:43]} 20. dxc6 {[%emt 0:06:39]} Rc8 {[%emt 0:01:01]} 21. a4 {[%emt 0:01:27]} Qxa4 {[%emt 0:06:33]} 22. Qxa4 {[%emt 0:00:17]} bxa4 {[%emt 0:00:10]} 23. Bxa6 {[%emt 0:00:19]} Ne8 {[%emt 0:03:27]} 24. Bxc8 {[%emt 0:00:20]} Bxb2 {[%emt 0:00:12]} 25. Ba6 {[%emt 0:04:20]} a3 {[%emt 0:02:52]} 26. Bc4 {[%emt 0:00:19]} Nc7 {[%emt 0:01:50]} 27. Rd1 {[%emt 0:04:32]} Na8 {[%emt 0:01:49]} 28. Ba2 {[%emt 0:02:07]} Kf8 {[%emt 0:00:33]} 29. Bd4 {[%emt 0:00:31]} 1-0

[Event "LEM Niedersachsen-A-Open 2025"]
[Site "Verden"]
[Date "2025.01.02"]
[Round "1.34"]
[White "Krumschmidt, Michael"]
[Black "Soellig, Martin"]
[Result "0-1"]
[ECO "E41"]
[WhiteElo "1787"]
[BlackElo "1930"]
[Annotator "RC"]
[PlyCount "63"]
[EventDate "2024.12.27"]
[EventType "swiss"]
[EventCountry "GER"]
[SourceTitle "playchess.com"]
[Source "ChessBase"]
[SourceQuality "1"]
[TimeControl "40/5400+30:1800+30"]

1. d4 {[%emt 0:01:54]} e6 {[%emt 0:00:06]} 2. c4 {[%emt 0:00:31]} Nf6 {[%emt 0:00:08]} 3. Nc3 {[%emt 0:01:19]} Bb4 {[%emt 0:00:07]} 4. Qc2 {[%emt 0:00:20]} c5 {[%emt 0:03:49]} 5. Nf3 {[%emt 0:04:31]} Nc6 {[%emt 0:02:22]} 6. e3 {[%emt 0:01:17]} d6 {[%emt 0:01:55]} 7. Bd3 {[%emt 0:00:42]} e5 {[%emt 0:04:56]} 8. d5 {[%emt 0:06:23]} Ne7 {[%emt 0:04:20]} 9. O-O {[%emt 0:06:25]} Bxc3 {[%emt 0:03:51]} 10. bxc3 {[%emt 0:00:05]} Bg4 {[%emt 0:05:56]} 11. Nd2 {[%emt 0:00:38]} O-O {[%emt 0:02:44]} 12. f4 {[%emt 0:01:15]} exf4 {[%emt 0:03:24]} 13. Rxf4 {[%emt 0:01:41]} Ng6 {[%emt 0:06:06]} 14. Rf2 {[%emt 0:03:15]} Qe7 {[%emt 0:04:21]} 15. e4 {[%emt 0:02:38]} Ne5 {[%emt 0:05:04]} 16. Bb2 {[%emt 0:09:26]} Bh5 {[%emt 0:02:48]} 17. Raf1 {[%emt 0:02:45]} Nfg4 {[%emt 0:02:30]} 18. Re2 {[%emt 0:07:40]} Nxd3 {[%emt 0:01:57]} 19. Qxd3 {[%emt 0:01:48]} Ne5 {[%emt 0:00:00]} 20. Qe3 {[%emt 0:00:52]} Bxe2 {[%emt 0:00:40]} 21. Qxe2 {[%emt 0:02:41]} Rae8 {[%emt 0:00:05]} 22. Rf4 {[%emt 0:03:13]} Qg5 {[%emt 0:05:31]} 23. Rf5 {[%emt 0:02:50]} Qg4 {[%emt 0:01:17]} 24. Qe3 {[%emt 0:00:20]} g6 {[%emt 0:02:05]} 25. h3 {[%emt 0:00:51]} Qd1+ {[%emt 0:01:14]} 26. Rf1 {[%emt 0:00:13]} Qc2 {[%emt 0:00:32]} 27. Bc1 {[%emt 0:01:41]} Qd3 {[%emt 0:02:06]} 28. Qf2 {[%emt 0:01:02]} f5 {[%emt 0:01:10]} 29. Nf3 {[%emt 0:07:03]} Nxf3+ {[%emt 0:03:09]} 30. gxf3 {[%emt 0:00:30]} fxe4 {[%emt 0:00:17]} 31. f4 {[%emt 0:00:13]} Qxh3 {[%emt 0:01:04]} 32. Re1 {[%emt 0:30:28]} 0-1

[Event "LEM Niedersachsen-A-Open 2025"]
[Site "Verden"]
[Date "2025.01.02"]
[Round "1.35"]
[White "Ehlert, Horst"]
[Black "Oblender, Rudi"]
[Result "1/2-1/2"]
[ECO "A16"]
[WhiteElo "1929"]
[BlackElo "1779"]
[Annotator "RC"]
[PlyCount "99"]
[EventDate "2024.12.27"]
[EventType "swiss"]
[EventCountry "GER"]
[SourceTitle "playchess.com"]
[Source "ChessBase"]
[SourceQuality "1"]
[TimeControl "40/5400+30:1800+30"]

1. c4 {[%emt 0:00:22]} g6 {[%emt 0:00:12]} 2. g3 {[%emt 0:00:26]} Bg7 {[%emt 0:00:05]} 3. Bg2 {[%emt 0:00:08]} d6 {[%emt 0:00:10]} 4. Nc3 {[%emt 0:00:23]} Nf6 {[%emt 0:00:06]} 5. e3 {[%emt 0:00:23]} O-O {[%emt 0:00:06]} 6. Nge2 {[%emt 0:00:07]} Nbd7 {[%emt 0:00:05]} 7. O-O {[%emt 0:00:19]} Nb6 {[%emt 0:05:58]} 8. d3 {[%emt 0:10:04]} c5 {[%emt 0:03:31]} 9. Qc2 {[%emt 0:05:24]} Qc7 {[%emt 0:00:41]} 10. Rb1 {[%emt 0:02:50]} Bd7 {[%emt 0:04:21]} 11. e4 {[%emt 0:09:01]} a6 {[%emt 0:04:36]} 12. h3 {[%emt 0:07:07]} e6 {[%emt 0:01:44]} 13. Be3 {[%emt 0:05:00]} Nc8 {[%emt 0:02:19]} 14. f4 {[%emt 0:04:38]} Bc6 {[%emt 0:01:50]} 15. b3 {[%emt 0:05:59]} Ne7 {[%emt 0:00:41]} 16. Rfc1 {[%emt 0:10:17]} Nd7 {[%emt 0:01:12]} 17. Kh2 {[%emt 0:00:54]} f5 {[%emt 0:01:55]} 18. d4 {[%emt 0:07:40]} fxe4 {[%emt 0:04:34]} 19. dxc5 {[%emt 0:05:10]} dxc5 {[%emt 0:03:39]} 20. Nxe4 {[%emt 0:02:06]} b6 {[%emt 0:02:41]} 21. Rf1 {[%emt 0:06:13]} Nf5 {[%emt 0:01:18]} 22. Bg1 {[%emt 0:00:10]} e5 {[%emt 0:10:00]} 23. Rbd1 {[%emt 0:05:44]} Rae8 {[%emt 0:11:01]} 24. Qd3 {[%emt 0:01:25]} Re6 {[%emt 0:03:51]} 25. Ng5 {[%emt 0:02:35]} Rd6 {[%emt 0:00:56]} 26. Bd5+ {[%emt 0:00:20]} Bxd5 {[%emt 0:04:10]} 27. cxd5 {[%emt 0:00:04]} Qb7 {[%emt 0:05:19]} 28. Ne4 {[%emt 0:00:52]} Rff6 {[%emt 0:02:23]} 29. Nxd6 {[%emt 0:02:16]} Rxd6 {[%emt 0:00:18]} 30. Nc3 {[%emt 0:01:27]} exf4 {[%emt 0:00:59]} 31. gxf4 {[%emt 0:00:30]} Bxc3 {[%emt 0:00:24]} 32. Qxc3 {[%emt 0:00:41]} Rxd5 {[%emt 0:00:33]} 33. Rxd5 {[%emt 0:00:58]} Qxd5 {[%emt 0:00:02]} 34. Qc4 {[%emt 0:00:50]} Qxc4 {[%emt 0:00:36]} 35. bxc4 {[%emt 0:00:01]} Kf7 {[%emt 0:00:41]} 36. Kg2 {[%emt 0:00:57]} Nd6 {[%emt 0:00:22]} 37. Rc1 {[%emt 0:00:36]} Nf6 {[%emt 0:00:35]} 38. Kf3 {[%emt 0:01:00]} Ke6 {[%emt 0:00:18]} 39. Bf2 {[%emt 0:01:31]} Kf5 {[%emt 0:00:27]} 40. Bh4 {[%emt 0:02:19]} Nfe4 {[%emt 0:00:01]} 41. Ke3 {[%emt 0:30:23]} b5 {[%emt 0:31:47]} 42. cxb5 {[%emt 0:00:00]} axb5 {[%emt 0:00:00]} 43. Be7 {[%emt 0:00:00]} Nc4+ {[%emt 0:00:00]} 44. Rxc4 {[%emt 0:00:00]} bxc4 {[%emt 0:00:00]} 45. a4 {[%emt 0:00:00]} c3 {[%emt 0:00:00]} 46. Kd3 {[%emt 0:00:00]} Ke6 {[%emt 0:00:00]} 47. Bh4 {[%emt 0:00:00]} Kd5 {[%emt 0:00:00]} 48. Be1 {[%emt 0:00:00]} c4+ {[%emt 0:00:00]} 49. Kc2 {[%emt 0:00:00]} Nc5 {[%emt 0:00:00]} 50. a5 {[%emt 0:00:00]} 1/2-1/2